lending/lending_fUSD_20250425
["ID","MTS","AMOUNT","RATE_DAILY","PERIOD"]
[358977613,1745599851809,-500.0,0.00030136,2]
[358977614,1745599851818,-779.36,0.00030136,2]
[358977615,1745599851828,-525.40286998,0.00030136,2]
[358977616,1745599851838,-500.0,0.00030136,2]
[358977617,1745599851847,-500.0,0.00030136,2]
[358977618,1745599851857,-500.0,0.00030136,2]
[358977619,1745599851868,-609.87,0.00030136,2]
[358977620,1745599851877,-943.34,0.00030136,2]
[358977621,1745599851887,-500.0,0.00030136,2]
[358977622,1745599851897,-500.0,0.00030136,2]
[358977623,1745599851906,-510.86660988,0.00030136,2]
[358977624,1745599851918,-500.0,0.00030136,2]
[358977625,1745599851927,-500.0,0.00030136,2]
[358977626,1745599851937,-873.68,0.00030136,2]
[358977627,1745599851946,-500.0,0.00030136,2]
[358977628,1745599851956,-595.02,0.00030136,2]
[358977629,1745599851965,-626.11,0.00030136,2]
[358977630,1745599851975,-989.79,0.00030136,2]
[358977631,1745599851984,-1069.54,0.00030136,2]
[358977632,1745599851993,-500.0,0.00030136,2]
[358977633,1745599852002,-500.0,0.00030136,2]
[358977634,1745599852012,-500.0,0.00030136,2]
[358977635,1745599852021,-1019.56,0.00030136,2]
[358977636,1745599852031,-500.0,0.00030136,2]
[358977637,1745599852040,-1055.91,0.00030136,2]
[358977638,1745599852050,-500.0,0.00030136,2]
[358977639,1745599852059,-585.7241541,0.00030136,2]
[358977640,1745599852068,-500.0,0.00030136,2]
[358977641,1745599852078,-500.0,0.00030136,2]
[358977642,1745599852088,-351.31449296,0.00030136,2]
[358977643,1745599852099,-500.0,0.00030136,2]
[358977644,1745599852110,-500.0,0.00030136,2]
[358977645,1745599852120,-500.0,0.00030136,2]
[358977646,1745599852131,-500.0,0.00030136,2]
[358977647,1745599852141,-500.0,0.00030136,2]
[358977648,1745599852152,-669.87,0.00030136,2]
[358977649,1745599852163,-500.0,0.00030136,2]
[358977650,1745599852173,-590.49811333,0.00030136,2]
[358977651,1745599852183,-500.0,0.00030136,2]
[358977652,1745599852193,-500.0,0.00030136,2]
[358977653,1745599852203,-515.37061187,0.00030136,2]
[358977654,1745599852212,-500.0,0.00030136,2]
[358977655,1745599852222,-583.08237279,0.00030136,2]
[358977656,1745599852232,-500.0,0.00030136,2]
[358977657,1745599852242,-5439.41,0.00030136,2]
[358977658,1745599852251,-500.0,0.00030136,2]
[358977659,1745599852261,-714.61,0.00030136,2]
[358977660,1745599852271,-500.0,0.00030136,2]
[358977661,1745599852281,-500.0,0.00030136,2]
[358977662,1745599852291,-500.0,0.00030136,2]
[358977663,1745599852302,-500.0,0.00030136,2]
[358977664,1745599852312,-672.15,0.00030136,2]
[358977665,1745599852324,-869.52,0.00030136,2]
[358977666,1745599852334,-150.0,0.00030136,2]
[358977667,1745599852344,-500.0,0.00030136,2]
[358977668,1745599852355,-1185.63,0.00030136,2]
[358977669,1745599852365,-500.0,0.00030136,2]
[358977670,1745599852375,-500.0,0.00030136,2]
[358977671,1745599852387,-500.0,0.00030136,2]
[358977672,1745599852398,-500.0,0.00030136,2]
[358977673,1745599852409,-500.0,0.00030136,2]
[358977674,1745599852419,-500.0,0.00030136,2]
[358977675,1745599852429,-500.0,0.00030136,2]
[358977676,1745599852439,-244.90465513,0.00030136,2]
[358977677,1745599852449,-983.15,0.00030136,2]
[358977678,1745599852459,-500.0,0.00030136,2]
[358977679,1745599852468,-500.0,0.00030136,2]
[358977680,1745599852478,-500.0,0.00030136,2]
[358977681,1745599852488,-515.2579594,0.00030136,2]
[358977682,1745599852497,-547.24715166,0.00030136,2]
[358977683,1745599852507,-500.0,0.00030136,2]
[358977684,1745599852517,-500.0,0.00030136,7]
[358977685,1745599852526,-542.2,0.00030136,2]
[358977686,1745599852536,-500.0,0.00030136,2]
[358977687,1745599852546,-500.0,0.00030136,2]
[358977688,1745599852555,-595.07,0.00030136,2]
[358977689,1745599852564,-500.0,0.00030136,2]
[358977690,1745599852574,-500.0,0.00030136,2]
[358977691,1745599852584,-500.0,0.00030136,2]
[358977692,1745599852596,-500.0,0.00030136,2]
[358977693,1745599852606,-500.0,0.00030136,2]
[358977694,1745599852617,-1018.29,0.00030136,2]
[358977695,1745599852627,-795.68,0.00030136,2]
[358977696,1745599852638,-2152.1,0.00030136,2]
[358977697,1745599852650,-534.45303959,0.00030136,2]
[358977698,1745599852659,-500.0,0.00030136,2]
[358977699,1745599852669,-500.0,0.00030136,2]
[358977700,1745599852679,-500.0,0.00030136,2]
[358977701,1745599852688,-500.0,0.00030136,2]
[358977702,1745599852698,-348730.1,0.00030136,2]
[358977703,1745599852707,-500.0,0.00030136,2]
[358977704,1745599852716,-669.94,0.00030136,2]
[358977705,1745599852726,-500.0,0.00030136,2]
[358977706,1745599852737,-618.93,0.00030136,2]
[358977707,1745599852747,-500.0,0.00030136,2]
[358977708,1745599852758,-500.0,0.00030136,2]
[358977709,1745599852768,-500.0,0.00030136,2]
[358977710,1745599852779,-1022.67,0.00030136,2]
[358977711,1745599852795,-603.98678079,0.00030136,2]
[358977712,1745599852804,-500.0,0.00030136,2]
[358977713,1745599852815,-520.21981107,0.00030136,2]
[358977714,1745599852827,-500.0,0.00030136,2]
[358977715,1745599852837,-500.0,0.00030136,2]
[358977716,1745599852846,-500.0,0.00030136,2]
[358977717,1745599852858,-988.92,0.00030136,2]
[358977718,1745599852870,-1098.22,0.00030136,2]
[358977719,1745599852880,-500.0,0.00030136,2]
[358977720,1745599853002,-572.07,0.00030136,2]
[358977721,1745599853014,-500.0,0.00030136,2]
[358977722,1745599853025,-500.0,0.00030136,2]
[358977723,1745599853034,-632.24,0.00030136,2]
[358977724,1745599853044,-856.07,0.00030136,2]
[358977725,1745599853054,-501.62234626,0.00030136,2]
[358977726,1745599853067,-500.0,0.00030136,2]
[358977727,1745599853076,-506.79673967,0.00030136,2]
[358977728,1745599853087,-2047.35,0.00030136,2]
[358977729,1745599853096,-1466.24,0.00030136,2]
[358977730,1745599853106,-500.0,0.00030136,2]
[358977731,1745599853117,-500.0,0.00030136,2]
[358977732,1745599853127,-782.3,0.00030136,2]
[358977733,1745599853138,-318.02479488,0.00030136,2]
[358977734,1745599853149,-509.45105188,0.00030136,2]
[358977735,1745599853159,-500.0,0.00030136,2]
[358977736,1745599853168,-776.92,0.00030136,2]
[358977737,1745599853178,-500.0,0.00030136,2]
[358977738,1745599853189,-500.0,0.00030136,2]
[358977739,1745599853199,-1119.8,0.00030136,2]
[358977740,1745599853209,-500.0,0.00030136,2]
[358977741,1745599853220,-985.68,0.00030136,2]
[358977742,1745599853229,-500.0,0.00030136,2]
[358977743,1745599853240,-1113.66,0.00030136,2]
[358977744,1745599853249,-952.26,0.00030136,2]
[358977745,1745599853259,-587.61,0.00030136,2]
[358977746,1745599853268,-500.0,0.00030136,2]
[358977747,1745599853277,-500.0,0.00030136,2]
[358977748,1745599853287,-1207.25,0.00030136,2]
[358977749,1745599853297,-500.0,0.00030136,2]
[358977750,1745599853307,-500.0,0.00030136,2]
[358977751,1745599853317,-500.0,0.00030136,2]
[358977752,1745599853327,-500.0,0.00030136,2]
[358977753,1745599853336,-766.4,0.00030136,2]
[358977754,1745599853345,-1110.54,0.00030136,2]
[358977755,1745599853355,-500.0,0.00030136,2]
[358977756,1745599853365,-500.0,0.00030136,2]
[358977757,1745599853374,-500.0,0.00030136,2]
[358977758,1745599853384,-749.42,0.00030136,2]
[358977759,1745599853393,-500.0,0.00030136,2]
[358977760,1745599853403,-904.12,0.00030136,2]
[358977761,1745599853415,-500.0,0.00030136,2]
[358977762,1745599853425,-500.0,0.00030136,2]
[358977763,1745599853434,-535.56106968,0.00030136,2]
[358977764,1745599853444,-500.0,0.00030136,2]
[358977765,1745599853454,-500.0,0.00030136,2]
[358977766,1745599853464,-554.11047569,0.00030136,2]
[358977767,1745599853474,-813.8,0.00030136,2]
[358977768,1745599853485,-500.0,0.00030136,2]
[358977769,1745599853495,-500.00483233,0.00030136,2]
[358977770,1745599853504,-500.0,0.00030136,2]
[358977771,1745599853514,-500.0,0.00030136,2]
[358977772,1745599853523,-500.0,0.00030136,2]
[358977773,1745599853532,-1235.79,0.00030136,2]
[358977774,1745599853543,-500.0,0.00030136,2]
[358977775,1745599853552,-413.7578742,0.00030136,2]
[358977776,1745599853563,-1008.46,0.00030136,2]
[358977777,1745599853572,-500.0,0.00030136,2]
[358977778,1745599853582,-500.0,0.00030136,2]
[358977779,1745599853591,-500.0,0.00030136,2]
[358977780,1745599853600,-500.0,0.00030136,2]
[358977781,1745599853609,-1062.37,0.00030136,2]
[358977782,1745599853619,-500.0,0.00030136,2]
[358977783,1745599853629,-544.35980817,0.00030136,2]
[358977784,1745599853640,-500.0,0.00030136,2]
[358977785,1745599853650,-500.0,0.00030136,2]
[358977786,1745599853662,-500.0,0.00030136,2]
[358977787,1745599853674,-707.65,0.00030136,2]
[358977788,1745599853683,-500.0,0.00030136,2]
[358977789,1745599853692,-500.0,0.00030136,2]
[358977790,1745599853702,-1117.03,0.00030136,2]
[358977791,1745599853713,-500.0,0.00030136,2]
[358977792,1745599853723,-500.0,0.00030136,2]
[358977793,1745599853732,-770.13,0.00030136,2]
[358977794,1745599853742,-500.0,0.00030136,2]
[358977795,1745599853751,-500.0,0.00030136,2]
[358977796,1745599853761,-500.0,0.00030136,2]
[358977797,1745599853770,-500.0,0.00030136,2]
[358977798,1745599853779,-500.0,0.00030136,2]
[358977799,1745599853795,-1060.87,0.00030136,2]
[358977800,1745599853806,-500.0,0.00030136,2]
[358977801,1745599853818,-500.0,0.00030136,2]
[358977802,1745599853828,-500.0,0.00030136,2]
[358977803,1745599853839,-500.0,0.00030136,2]
[358977804,1745599853848,-500.0,0.00030136,2]
[358977805,1745599853858,-500.0,0.00030136,2]
[358977806,1745599853868,-500.0,0.00030136,2]
[358977807,1745599853878,-500.0,0.00030136,2]
[358977808,1745599853888,-497.22927234,0.00030136,2]
[358977809,1745599853898,-500.0,0.00030136,2]
[358977810,1745599853907,-921.18,0.00030136,2]
[358977811,1745599853919,-921.18,0.00030136,2]
[358977812,1745599853929,-921.18,0.00030136,2]
[358977813,1745599853939,-500.0,0.00030136,2]
[358977814,1745599853949,-921.18,0.00030136,2]
[358977815,1745599853959,-500.0,0.00030136,2]
[358977816,1745599853968,-921.18,0.00030136,2]
[358977817,1745599853978,-500.0,0.00030136,2]
[358977818,1745599853987,-500.0,0.00030136,2]
[358977819,1745599853996,-921.18,0.00030136,2]
[358977820,1745599854005,-500.0,0.00030136,2]
[358977821,1745599854014,-1888.49,0.00030136,2]
[358977822,1745599854023,-921.18,0.00030136,2]
[358977823,1745599854032,-500.0,0.00030136,2]
[358977824,1745599854042,-921.18,0.00030136,2]
[358977825,1745599854051,-500.0,0.00030136,2]
[358977826,1745599854060,-566.09991193,0.00030136,2]
[358977827,1745599854069,-921.18,0.00030136,2]
[358977828,1745599854079,-500.0,0.00030136,2]
[358977829,1745599854089,-500.0,0.00030136,2]
[358977830,1745599854098,-500.0,0.00030136,2]
[358977831,1745599854107,-921.18,0.00030136,2]
[358977832,1745599854116,-500.0,0.00030136,2]
[358977833,1745599854125,-921.18,0.00030136,2]
[358977834,1745599854135,-500.0,0.00030136,2]
[358977835,1745599854144,-921.18,0.00030136,2]
[358977836,1745599854153,-670.74,0.00030136,2]
[358977837,1745599854164,-500.0,0.00030136,2]
[358977838,1745599854174,-921.18,0.00030136,2]
[358977839,1745599854183,-921.18,0.00030136,2]
[358977840,1745599854192,-921.18,0.00030136,2]
[358977841,1745599854203,-921.18,0.00030136,2]
[358977842,1745599854212,-921.18,0.00030136,2]
[358977843,1745599854221,-921.18,0.00030136,2]
[358977844,1745599854231,-500.0,0.00030136,2]
[358977845,1745599854241,-6666.66,0.00030136,2]
[358977846,1745599854251,-500.0,0.00030136,2]
[358977847,1745599854262,-921.18,0.00030136,2]
[358977848,1745599854271,-583.43344478,0.00030136,2]
[358977849,1745599854282,-921.18,0.00030136,2]
[358977850,1745599854291,-500.0,0.00030136,2]
[358977851,1745599854301,-921.18,0.00030136,2]
[358977852,1745599854311,-921.18,0.00030136,2]
[358977853,1745599854321,-921.18,0.00030136,2]
[358977854,1745599854330,-500.0,0.00030136,2]
[358977855,1745599854340,-921.38704096,0.00030136,2]
[358977856,1745599854350,-500.0,0.00030136,2]
[358977857,1745599854359,-500.0,0.00030136,2]
[358977858,1745599854370,-996.13,0.00030136,2]
[358977859,1745599854380,-470.74523015,0.00030136,2]
[358977860,1745599854389,-614.16,0.00030136,2]
[358977861,1745599854399,-500.0,0.00030136,2]
[358977862,1745599854408,-500.0,0.00030136,2]
[358977863,1745599854419,-500.0,0.00030136,2]
[358977864,1745599854428,-557.66,0.00030136,2]
[358977865,1745599854438,-593.39511984,0.00030136,2]
[358977866,1745599854448,-1208.07,0.00030136,2]
[358977867,1745599854457,-500.0,0.00030136,2]
[358977868,1745599854467,-500.0,0.00030136,2]
[358977869,1745599854476,-500.0,0.00030136,2]
[358977870,1745599854486,-1187.16,0.00030136,2]
[358977871,1745599854495,-500.0,0.00030136,2]
[358977872,1745599854505,-500.0,0.00030136,2]
[358977873,1745599854516,-500.0,0.00030136,2]
[358977874,1745599854525,-500.0,0.00030136,2]
[358977875,1745599854535,-811.13,0.00030136,2]
[358977876,1745599854547,-500.0,0.00030136,2]
[358977877,1745599854557,-928.52,0.00030136,2]
[358977878,1745599854567,-1045.74,0.00030136,2]
[358977879,1745599854576,-500.0,0.00030136,2]
[358977880,1745599854586,-500.0,0.00030136,2]
[358977881,1745599854597,-500.0,0.00030136,2]
[358977882,1745599854606,-849.84,0.00030136,2]
[358977883,1745599854616,-1818.74,0.00030136,2]
[358977884,1745599854625,-500.0,0.00030136,2]
[358977885,1745599854634,-737.09,0.00030136,2]
[358977886,1745599854643,-500.0,0.00030136,2]
[358977887,1745599854653,-500.0,0.00030136,2]
[358977888,1745599854664,-500.0,0.00030136,2]
[358977889,1745599854674,-500.0,0.00030136,2]
[358977890,1745599854683,-500.0,0.00030136,2]
[358977891,1745599854693,-500.0,0.00030136,2]
[358977892,1745599854703,-500.0,0.00030136,2]
[358977893,1745599854712,-519.88200471,0.00030136,2]
[358977894,1745599854723,-981.54,0.00030136,2]
[358977895,1745599854732,-500.0,0.00030136,2]
[358977896,1745599854741,-500.0,0.00030136,2]
[358977897,1745599854751,-500.0,0.00030136,2]
[358977898,1745599854761,-500.0,0.00030136,2]
[358977899,1745599854771,-500.0,0.00030136,2]
[358977900,1745599854781,-1114.87,0.00030136,2]
[358977901,1745599854794,-500.0,0.00030136,2]
[358977902,1745599854804,-500.0,0.00030136,2]
[358977903,1745599854814,-823.83,0.00030136,2]
[358977904,1745599854823,-500.0,0.00030136,2]
[358977905,1745599854834,-500.0,0.00030136,2]
[358977906,1745599854844,-570.82,0.00030136,2]
[358977907,1745599854854,-6847.17,0.00030136,2]
[358977908,1745599854864,-570.82,0.00030136,2]
[358977909,1745599854875,-570.82,0.00030136,2]
[358977910,1745599854885,-500.0,0.00030136,2]
[358977911,1745599854895,-500.0,0.00030136,2]
[358977912,1745599854905,-570.82,0.00030136,2]
[358977913,1745599854915,-500.0,0.00030136,2]
[358977914,1745599854925,-500.0,0.00030136,2]
[358977915,1745599854935,-570.82,0.00030136,2]
[358977916,1745599854945,-500.0,0.00030136,2]
[358977917,1745599854956,-500.0,0.00030136,2]
[358977918,1745599854966,-570.82,0.00030136,2]
[358977919,1745599854976,-570.82,0.00030136,2]
[358977920,1745599854987,-500.0,0.00030136,2]
[358977921,1745599854998,-500.0,0.00030136,2]
[358977922,1745599855008,-570.82,0.00030136,2]
[358977923,1745599855018,-570.82,0.00030136,2]
[358977924,1745599855027,-570.82,0.00030136,2]
[358977925,1745599855038,-570.82,0.00030136,2]
[358977926,1745599855049,-1185.34,0.00030136,2]
[358977927,1745599855059,-570.82,0.00030136,2]
[358977928,1745599855069,-906.23,0.00030136,2]
[358977929,1745599855081,-570.82,0.00030136,2]
[358977930,1745599855092,-570.82,0.00030136,2]
[358977931,1745599855103,-570.82,0.00030136,2]
[358977932,1745599855112,-570.82,0.00030136,2]
[358977933,1745599855122,-500.0,0.00030136,2]
[358977934,1745599855131,-570.82,0.00030136,2]
[358977935,1745599855140,-500.0,0.00030136,2]
[358977936,1745599855151,-570.82,0.00030136,2]
[358977937,1745599855161,-500.0,0.00030136,2]
[358977938,1745599855172,-570.82,0.00030136,2]
[358977939,1745599855182,-570.82,0.00030136,2]
[358977940,1745599855192,-1283.1,0.00030136,2]
[358977941,1745599855202,-570.82,0.00030136,2]
[358977942,1745599855212,-500.0,0.00030136,2]
[358977943,1745599855221,-570.82,0.00030136,2]
[358977944,1745599855232,-570.82,0.00030136,2]
[358977945,1745599855242,-500.0,0.00030136,2]
[358977946,1745599855251,-570.89255412,0.00030136,2]
[358977947,1745599855261,-500.0,0.00030136,2]
[358977948,1745599855270,-500.0,0.00030136,2]
[358977949,1745599855280,-542.03,0.00030136,2]
[358977950,1745599855289,-520.83,0.00030136,2]
[358977951,1745599855298,-620.36,0.00030136,2]
[358977952,1745599855308,-750.36,0.00030136,2]
[358977953,1745599855319,-500.0,0.00030136,2]
[358977954,1745599855329,-500.0,0.00030136,2]
[358977955,1745599855339,-500.0,0.00030136,2]
[358977956,1745599855349,-500.0,0.00030136,2]
[358977957,1745599855358,-163.546868,0.00030136,2]
[358977958,1745599855368,-500.0,0.00030136,2]
[358977959,1745599855379,-500.0,0.00030136,2]
[358977960,1745599855389,-500.0,0.00030136,2]
[358977961,1745599855399,-1549.99,0.00030136,2]
[358977962,1745599855411,-171.549012,0.00030136,2]
[358977963,1745599855421,-500.0,0.00030136,2]
[358977964,1745599855431,-534.59471592,0.00030136,2]
[358977965,1745599855442,-500.0,0.00030136,2]
[358977966,1745599855452,-516.71601346,0.00030136,2]
[358977967,1745599855461,-500.0,0.00030136,2]
[358977968,1745599855471,-500.0,0.00030136,2]
[358977969,1745599855480,-500.0,0.00030136,2]
[358977970,1745599855490,-500.0,0.00030136,2]
[358977971,1745599855499,-500.0,0.00030136,2]
[358977972,1745599855509,-500.0,0.00030136,2]
[358977973,1745599855518,-542.37,0.00030136,2]
[358977974,1745599855528,-500.0,0.00030136,2]
[358977975,1745599855537,-500.0,0.00030136,2]
[358977976,1745599855548,-500.0,0.00030136,2]
[358977977,1745599855558,-150.62785116,0.00030154,2]
[358977978,1745599855569,-229.94836308,0.00030173,5]
[358977979,1745599855580,-500.0,0.00030173,5]
[358977980,1745599855590,-500.0,0.00030173,5]
[358977981,1745599855599,-502.20569822,0.00030173,5]
[358977982,1745599855609,-501.0364123,0.00030173,5]
[358977983,1745599855621,-500.0,0.00030173,5]
[358977984,1745599855632,-528.94035995,0.00030173,5]
[358977985,1745599855643,-500.0,0.00030173,5]
[358977986,1745599855656,-500.0,0.00030173,5]
[358977987,1745599855667,-204.95430672,0.00030173,5]
[358977988,1745599855677,-270.50775243,0.00030173,5]
[358977989,1745599855686,-499.82163495,0.00030173,5]
[358977990,1745599855696,-500.0,0.00030173,5]
[358977991,1745599855707,-500.0,0.00030173,5]
[358977992,1745599855718,-500.0,0.00030173,5]
[358977993,1745599855729,-504.5226041,0.00030173,5]
[358977994,1745599855739,-500.0,0.00030173,5]
[358977995,1745599855751,-500.0,0.00030191,2]
[358977996,1745599855760,-232.80351939,0.00030246,2]
[358977997,1745599855770,-511.39034072,0.00030313,5]
[358977998,1745599855780,-666.0,0.00030409,10]
[358977999,1745599855795,-300.0,0.00030409,10]
[358978000,1745599855806,-150.0,0.00030409,3]
[358978001,1745599855815,-253.23952419,0.0003041,2]
[358978002,1745599855826,-500.0,0.0003041,2]
[358978003,1745599855839,-500.0,0.0003041,2]
[358978004,1745599855850,-500.0,0.0003041,2]
[358978005,1745599855863,-500.0,0.0003041,2]
[358978006,1745599855873,-504.17535787,0.0003041,2]
[358978007,1745599855884,-500.0,0.0003041,2]
[358978008,1745599855895,-500.0,0.0003041,2]
[358978009,1745599855905,-500.0,0.0003041,2]
[358978010,1745599855915,-500.0,0.0003041,2]
[358978011,1745599855926,-500.0,0.0003041,2]
[358978012,1745599855936,-517.30669021,0.0003041,2]
[358978013,1745599855946,-553.98566313,0.0003041,2]
[358978014,1745599855957,-500.0,0.0003041,2]
[358978015,1745599855968,-500.0,0.0003041,2]
[358978016,1745599855979,-520.7597961,0.0003041,2]
[358978017,1745599855991,-500.0,0.0003041,2]
[358978018,1745599856002,-763.89,0.0003041,2]
[358978019,1745599856013,-500.0,0.0003041,2]
[358978020,1745599856023,-500.0,0.0003041,2]
[358978021,1745599856033,-500.0,0.0003041,2]
[358978022,1745599856042,-500.0,0.0003041,2]
[358978023,1745599856052,-500.0,0.0003041,2]
[358978024,1745599856062,-500.0,0.0003041,2]
[358978025,1745599856074,-1235.27,0.0003041,2]
[358978026,1745599856086,-562.03593086,0.0003041,2]
[358978027,1745599856099,-500.0,0.0003041,2]
[358978028,1745599856109,-500.0,0.0003041,2]
[358978029,1745599856120,-500.0,0.0003041,2]
[358978030,1745599856132,-534.98,0.0003041,2]
[358978031,1745599856142,-500.0,0.0003041,2]
[358978032,1745599856152,-500.0,0.0003041,2]
[358978033,1745599856162,-500.0,0.0003041,2]
[358978034,1745599856173,-534.49898687,0.0003041,2]
[358978035,1745599856182,-544.86193925,0.0003041,2]
[358978036,1745599856193,-500.0,0.0003041,2]
[358978037,1745599856203,-600.76235216,0.0003041,2]
[358978038,1745599856213,-510.43092909,0.0003041,2]
[358978039,1745599856223,-500.0,0.0003041,2]
[358978040,1745599856234,-500.0,0.0003041,2]
[358978041,1745599856245,-500.0,0.0003041,2]
[358978042,1745599856255,-500.0,0.0003041,2]
[358978043,1745599856265,-532.27204479,0.0003041,2]
[358978044,1745599856275,-500.0,0.0003041,2]
[358978045,1745599856284,-500.0,0.0003041,2]
[358978046,1745599856295,-522.71781178,0.0003041,2]
[358978047,1745599856305,-500.0,0.0003041,2]
[358978048,1745599856316,-500.0,0.0003041,2]
[358978049,1745599856326,-948.3,0.0003041,2]
[358978050,1745599856336,-500.0,0.0003041,2]
[358978051,1745599856347,-500.0,0.0003041,2]
[358978052,1745599856357,-500.0,0.0003041,2]
[358978053,1745599856367,-560.98789366,0.0003041,2]
[358978054,1745599856377,-500.0,0.0003041,2]
[358978055,1745599856387,-500.0,0.0003041,2]
[358978056,1745599856398,-500.0,0.0003041,2]
[358978057,1745599856408,-500.0,0.0003041,2]
[358978058,1745599856419,-500.0,0.0003041,2]
[358978059,1745599856430,-500.0,0.0003041,2]
[358978060,1745599856439,-500.0,0.0003041,2]
[358978061,1745599856449,-1522.5,0.0003041,2]
[358978062,1745599856459,-500.0,0.0003041,2]
[358978063,1745599856470,-500.0,0.0003041,2]
[358978064,1745599856480,-1567.43,0.0003041,2]
[358978065,1745599856491,-500.0,0.0003041,2]
[358978066,1745599856501,-500.0,0.0003041,2]
[358978067,1745599856511,-500.0,0.0003041,2]
[358978068,1745599856521,-461.63209462,0.0003041,2]
[358978069,1745599856531,-500.0,0.0003041,2]
[358978070,1745599856541,-1044.85,0.0003041,2]
[358978071,1745599856551,-500.0,0.0003041,2]
[358978072,1745599856561,-500.0,0.0003041,2]
[358978073,1745599856572,-678.19,0.0003041,2]
[358978074,1745599856582,-500.0,0.0003041,2]
[358978075,1745599856593,-500.0,0.0003041,2]
[358978076,1745599856603,-500.0,0.0003041,2]
[358978077,1745599856613,-500.0,0.0003041,2]
[358978078,1745599856622,-500.0,0.0003041,2]
[358978079,1745599856632,-506.96209056,0.0003041,2]
[358978080,1745599856643,-500.0,0.0003041,2]
[358978081,1745599856653,-500.0,0.0003041,2]
[358978082,1745599856664,-500.0,0.0003041,2]
[358978083,1745599856674,-500.0,0.0003041,2]
[358978084,1745599856684,-500.0,0.0003041,2]
[358978085,1745599856695,-491.37452138,0.0003041,2]
[358978086,1745599856705,-500.0,0.0003041,2]
[358978087,1745599856716,-562.49340467,0.0003041,2]
[358978088,1745599856726,-500.0,0.0003041,2]
[358978089,1745599856736,-552.99123692,0.0003041,2]
[358978090,1745599856747,-586.9990047,0.0003041,2]
[358978091,1745599856758,-1000.0,0.0003041,2]
[358978092,1745599856768,-526.15712472,0.0003041,2]
[358978093,1745599856778,-500.0,0.0003041,2]
[358978094,1745599856790,-500.0,0.0003041,2]
[358978095,1745599856801,-543.7298986,0.0003041,2]
[358978096,1745599856811,-204.34185198,0.0003041,2]
[358978097,1745599856821,-1055.46,0.0003041,2]
[358978098,1745599856831,-1075.39,0.0003041,2]
[358978099,1745599856841,-249.37929844,0.0003041,2]
[358978100,1745599856851,-500.0,0.0003041,2]
[358978101,1745599856861,-500.0,0.0003041,2]
[358978102,1745599856872,-500.0,0.0003041,2]
[358978103,1745599856882,-500.0,0.0003041,2]
[358978104,1745599856891,-500.0,0.0003041,2]
[358978105,1745599856901,-500.0,0.0003041,2]
[358978106,1745599856911,-500.0,0.0003041,2]
[358978107,1745599856922,-500.0,0.0003041,2]
[358978108,1745599856932,-500.0,0.0003041,2]
[358978109,1745599856942,-500.0,0.0003041,2]
[358978110,1745599856952,-525.69,0.0003041,2]
[358978111,1745599856961,-500.0,0.0003041,2]
[358978112,1745599856972,-500.0,0.0003041,2]